bitfinex-derivatives/quotes_ETHF0:USTF0_20250330
["timestamp","ask_amount","ask_price","bid_price","bid_amount"]
[1743341627288,29.56968734,1809.6,1809.5,1.10558]
[1743341627479,26.36188734,1809.6,1809.5,1.10558]
[1743341627684,13.15408734,1809.6,1809.5,1.10558]
[1743341628190,6.73848734,1809.6,1809.5,1.10558]
[1743341628386,20.85804688,1809.6,1809.5,1.10558]
[1743341628587,40.48144688,1809.6,1809.5,1.10558]
[1743341629080,20.85804688,1809.6,1809.5,1.10558]
[1743341629284,27.27364688,1809.6,1809.5,1.10558]
[1743341629592,40.48144688,1809.6,1809.5,1.10558]
[1743341629793,13.15408734,1809.5,1809.4,1.10564]
[1743341630087,3.2078,1809.5,1808.4,2.76564]
[1743341630285,11.7284,1809.4,1808.3,0.5536]
[1743341630584,9.6234,1809.0,1808.9,1.10595]
[1743341630982,13.15408734,1808.9,1808.1,3.31876]
[1743341631179,9.6234,1808.3,1808.2,1.10638]
[1743341631382,9.6234,1808.3,1808.2,8.333329]
[1743341631579,28.46372734,1808.3,1807.7,0.5536]
[1743341631781,9.6234,1808.3,1808.2,1.10638]
[1743341631983,3.2078,1808.3,1807.4,0.5536]
[1743341632183,2.6542,1806.6,1805.4,1.10807]
[1743341632488,7.29108734,1806.5,1805.8,0.5536]
[1743341632693,3.2078,1806.0,1805.8,0.5536]
[1743341632893,0.00828843,1806.2,1806.1,1.10766]
[1743341633291,0.00828843,1806.2,1806.1,10.69216506]
[1743341633490,3.2078,1806.3,1806.2,1.1076]
[1743341633687,3.2078,1806.5,1806.4,1.10748]
[1743341633987,2.6542,1806.3,1806.2,7.10193917]
[1743341634189,3.2078,1806.5,1806.0,3.21608843]
[1743341634389,3.2078,1806.5,1806.4,1.10748]
[1743341634590,7.84468734,1806.5,1806.4,1.10748]
[1743341634893,7.84468734,1806.5,1806.2,1.10757]
[1743341635087,3.2078,1806.3,1806.0,0.00828843]
[1743341635288,3.2078,1806.1,1806.0,0.00828843]
[1743341635592,3.2078,1806.1,1806.0,1.11600843]
[1743341635891,0.00828843,1806.6,1806.0,15.5783467]
[1743341635892,3.2078,1806.5,1806.0,15.5783467]
[1743341636094,3.2078,1806.3,1806.0,7.1012467]
[1743341636389,14.40511966,1807.1,1806.8,1.10721]
[1743341636581,33.20929911,1807.5,1806.8,3.2078]
[1743341636786,2.7652,1808.7,1807.3,1.10687]
[1743341636787,54.2968,1808.0,1807.3,1.10687]
[1743341636987,51.089,1808.0,1807.4,4.31465]
[1743341637284,1.10622,1808.5,1807.7,1.10666]
[1743341637485,0.00828843,1807.9,1807.8,3.2078]
[1743341637691,0.00828843,1807.9,1807.8,4.31442]
[1743341638091,0.00828843,1807.9,1807.8,3.2078]
[1743341638785,0.00828843,1807.9,1807.8,4.31442]
[1743341639397,0.00828843,1807.9,1807.8,3.2078]
[1743341639693,0.00828843,1807.9,1807.8,4.31442]
[1743341639887,0.00828843,1807.9,1807.8,3.2078]
[1743341640094,0.00828843,1807.9,1807.8,4.31442]
[1743341640393,0.00828843,1807.9,1807.8,11.51302867]
[1743341640597,0.00828843,1807.9,1807.8,4.31442]
[1743341640892,0.00828843,1807.9,1807.8,3.2078]
[1743341641098,2.50828843,1807.9,1807.5,3.21608843]
[1743341641299,12.145,1807.8,1807.5,3.21608843]
[1743341641799,1.10668,1807.7,1807.5,0.00828843]
[1743341642101,1.10677,1807.6,1807.2,3.2078]
[1743341642495,1.10677,1807.6,1806.3,14.24343]
[1743341642496,3.2078,1807.3,1806.6,3.2078]
[1743341642694,3.2078,1807.3,1806.7,1.10727]
[1743341642992,3.2078,1807.3,1806.8,0.00828843]
[1743341643393,3.2078,1807.3,1806.8,10.27836602]
[1743341643693,3.2078,1807.8,1807.0,3.2078]
[1743341644001,3.2078,1807.8,1807.2,4.31473]
[1743341644195,3.2078,1807.8,1807.4,1.10686]
[1743341644399,10.39055033,1807.7,1807.4,3.2078]
[1743341644600,10.39055033,1807.7,1807.6,1.10674]
[1743341644990,10.39055033,1807.7,1807.1,2.76748]
[1743341644991,10.39055033,1807.7,1807.5,1.10677]
[1743341645197,10.39055033,1807.7,1807.1,3.2078]
[1743341645396,10.39055033,1807.7,1807.6,1.10674]
[1743341645596,10.39055033,1807.7,1807.3,3.2078]
[1743341645797,3.2078,1807.6,1807.1,3.2078]
[1743341645991,3.2078,1807.4,1806.8,3.21608843]
[1743341646294,11.857,1807.6,1806.8,3.21608843]
[1743341646295,15.0648,1807.6,1806.8,3.21608843]
[1743341646497,15.0648,1807.6,1807.0,3.2078]
[1743341646896,15.0648,1807.6,1807.3,1.10691]
[1743341647601,3.2078,1807.8,1807.2,3.2078]
[1743341647895,3.2078,1807.8,1807.5,1.10678]
[1743341648496,3.2078,1807.6,1807.0,3.2078]
[1743341648792,3.2078,1807.6,1807.3,1.10691]
[1743341648994,14.6407,1807.6,1807.3,1.10691]
[1743341649197,11.4329,1807.6,1807.0,3.2078]
[1743341649396,14.6407,1807.6,1806.8,3.21608843]
[1743341649593,3.2078,1807.2,1806.8,0.00828843]
[1743341649901,3.2078,1807.0,1806.7,1.10725]
[1743341650105,3.2078,1807.0,1805.5,33.5141]
[1743341650106,3.2078,1806.8,1806.4,1.10746]
[1743341650297,3.2078,1806.8,1806.5,1.10739]
[1743341650499,3.2078,1806.8,1806.6,1.10735]
[1743341650795,3.2078,1806.8,1806.3,7.31937278]
[1743341651098,3.2078,1806.6,1805.8,3.2078]
[1743341651295,3.2078,1806.2,1806.0,1.10772]
[1743341651495,3.2078,1806.2,1806.1,1.10766]
[1743341651693,3.2078,1806.2,1805.8,3.2078]
[1743341651895,3.2078,1806.3,1805.5,2.77009]
[1743341652101,11.44118843,1806.7,1805.4,14.5344]
[1743341652102,14.83,1806.2,1805.4,14.5344]
[1743341652298,3.2078,1806.0,1805.8,1.10782]
[1743341652505,3.2078,1806.0,1805.7,1.10788]
[1743341652907,11.6222,1806.2,1805.5,5.97786]
[1743341653110,11.6222,1806.2,1805.8,10.55001036]
[1743341653409,14.83,1806.2,1805.7,3.2078]
[1743341653607,3.2078,1806.4,1806.1,1.10766]
[1743341653795,3.2078,1806.4,1806.0,1.10772]
[1743341654102,0.00828843,1806.7,1805.9,3.2078]
[1743341654296,3.2078,1807.0,1806.3,3.2078]
[1743341654496,11.6222,1807.2,1806.8,1.10723]
[1743341654897,3.2078,1807.1,1806.5,3.2078]
[1743341655095,11.6222,1807.2,1806.5,3.2078]
[1743341655298,11.6222,1807.2,1806.7,3.2078]
[1743341655498,8.30965167,1807.3,1807.2,1.10699]
[1743341655900,10.39055034,1807.4,1807.3,1.10693]
[1743341656102,10.39055034,1807.4,1807.3,4.31473]
[1743341656304,0.00828843,1807.4,1807.3,4.86833]
[1743341656498,0.00828843,1807.4,1807.3,3.60693]
[1743341656701,0.00828843,1807.4,1807.3,11.59220754]
[1743341656899,0.00828843,1807.4,1807.3,14.64580754]
[1743341657103,0.00828843,1807.4,1807.3,8.93800754]
[1743341657304,0.00828843,1807.4,1807.3,1.10693]
[1743341657507,0.00828843,1807.4,1807.3,4.31473]
[1743341657708,0.00828843,1807.4,1807.1,3.2078]
[1743341657905,0.00828843,1807.4,1807.3,1.10693]
[1743341658207,0.00828843,1807.4,1807.1,3.2078]
[1743341658208,0.00828843,1807.4,1807.2,1.10696]
[1743341658405,3.2078,1807.3,1806.8,3.2078]
[1743341658707,3.2078,1807.0,1806.9,1.10717]
[1743341658898,3.2078,1807.0,1806.5,0.00828843]
[1743341659103,3.2078,1806.7,1806.5,0.00828843]
[1743341659307,11.6165,1806.6,1806.5,0.00828843]
[1743341660003,11.6165,1806.6,1806.5,1.11570843]
[1743341660208,3.2078,1807.3,1806.9,1.10715]
[1743341660402,3.2078,1807.0,1806.8,1.1072]
[1743341660603,3.2078,1807.0,1806.9,1.10717]
[1743341661006,3.2078,1807.2,1806.7,3.2078]
[1743341661207,3.2078,1807.2,1807.1,1.10705]
[1743341661504,3.2078,1807.2,1807.0,1.1071]
[1743341662011,3.2078,1807.2,1806.5,2.77674843]
[1743341662012,3.2078,1807.2,1806.5,3.21608843]
[1743341662209,3.2078,1807.2,1806.8,1.10721]
[1743341662413,12.039,1807.1,1806.9,1.10716]
[1743341662604,12.039,1807.1,1806.6,7.03381665]
[1743341662605,3.2078,1807.2,1807.0,1.10711]
[1743341662908,3.2078,1807.2,1807.1,1.10705]
[1743341663111,0.00828843,1807.4,1807.1,7.31950308]
[1743341663412,0.00828843,1807.4,1807.1,1.107]
[1743341663801,0.00828843,1807.4,1806.8,3.2078]
[1743341664107,3.2078,1807.3,1807.0,1.10708]
[1743341664304,0.00828843,1807.4,1807.2,1.10699]
[1743341664602,3.2078,1807.3,1806.2,3.2078]
[1743341664802,14.24318843,1807.4,1806.8,3.2078]
[1743341665003,14.24318843,1807.4,1806.8,1.10721]
[1743341665204,3.2078,1807.2,1806.8,1.10721]
[1743341665402,11.0271,1807.1,1806.8,1.10721]
[1743341665602,11.0271,1807.1,1807.0,1.10711]
[1743341665806,11.0271,1807.1,1806.8,1.1072]
[1743341666107,11.0271,1807.1,1807.0,1.10711]
[1743341666302,11.0271,1807.1,1806.9,1.10715]
[1743341666509,3.2078,1807.0,1806.6,3.2078]
[1743341666710,11.0271,1807.1,1806.6,3.2078]
[1743341667113,3.2078,1807.0,1806.7,1.10726]
[1743341667612,4.31496,1807.0,1806.6,3.2078]
[1743341667803,3.2078,1806.7,1806.5,0.00828843]
[1743341668820,12.1703,1806.6,1806.5,0.00828843]
[1743341669617,12.1703,1806.6,1806.0,2.76925]
[1743341669818,12.1703,1806.6,1806.4,1.10742]
[1743341670414,12.1703,1806.6,1806.1,3.2078]
[1743341670717,3.21608843,1806.5,1806.3,1.1075]
[1743341671109,3.21608843,1806.5,1806.2,1.10756]
[1743341671304,3.21608843,1806.5,1806.1,3.2078]
[1743341671511,3.21608843,1806.5,1806.4,1.10748]
[1743341672017,0.00828843,1806.5,1806.4,1.10748]
[1743341672913,0.00828843,1806.5,1806.4,8.41521262]
[1743341673112,0.00828843,1806.5,1806.4,19.98931262]
[1743341673414,0.00828843,1806.5,1806.4,22.48931262]
[1743341673606,12.44899098,1807.2,1806.5,2.76855]
[1743341673807,12.44899098,1807.2,1806.4,21.38183262]
[1743341673808,12.44899098,1807.2,1807.1,1.10705]
[1743341674313,15.3927,1808.1,1807.1,12.79051328]
[1743341674514,3.2078,1807.7,1807.3,1.10691]
[1743341674719,3.2078,1807.7,1807.4,1.11512843]
[1743341675313,3.2078,1807.7,1807.5,1.1068]
[1743341675611,3.2078,1807.7,1807.4,0.00828843]
[1743341675807,3.2078,1807.5,1807.3,1.10688]
[1743341676112,3.2078,1807.7,1807.1,7.03751549]
[1743341676308,3.2078,1807.7,1807.1,10.24531549]
[1743341676518,3.2078,1807.7,1807.6,1.10674]
[1743341676919,3.2078,1807.7,1807.3,2.76723]
[1743341676920,0.00828843,1807.8,1807.7,1.10668]
[1743341677715,1e-08,1807.8,1807.7,10.92664071]
[1743341678116,1e-08,1807.8,1807.7,14.13444071]
[1743341678513,10.7495418,1807.8,1807.7,14.13444071]
[1743341679217,10.7495418,1807.8,1807.7,1.10668]
[1743341679815,10.7495418,1807.8,1807.7,11.66196982]
[1743341680016,10.7495418,1807.8,1807.7,25.87716982]
[1743341680511,10.49559957,1807.9,1807.8,1.10662]
[1743341681019,10.49559957,1807.9,1807.8,10.92309723]
[1743341681409,6.30125378,1808.0,1807.9,1.10656]
[1743341681724,6.30954221,1808.0,1807.9,1.10656]
[1743341682421,6.30954221,1808.0,1807.9,8.45156823]
[1743341682617,6.30954221,1808.0,1807.9,10.95156823]
[1743341682922,6.30954221,1808.0,1807.9,8.45156823]
[1743341683315,6.30954221,1808.0,1807.9,10.95156823]
[1743341683510,6.30954221,1808.0,1807.9,14.15936823]
[1743341683713,6.30954221,1808.0,1807.9,8.45156823]
[1743341683922,6.30954221,1808.0,1807.9,11.65936823]
[1743341684322,10.49559957,1808.2,1808.1,1.10644]
[1743341684620,10.49559957,1808.2,1808.1,4.31424]
[1743341684812,10.49559957,1808.2,1808.1,11.58978303]
[1743341685213,10.49559957,1808.6,1808.5,1.10619]
[1743341685809,23.9138939,1809.0,1808.9,1.10595]
[1743341685810,15.7690939,1809.0,1808.9,1.10595]
[1743341686022,15.18049237,1809.0,1808.9,1.10595]
[1743341686216,17.25788037,1809.0,1808.9,1.10595]
[1743341686915,15.18049237,1809.0,1808.9,1.10595]
[1743341687117,15.18049237,1809.0,1808.9,8.13601543]
[1743341687423,15.18049237,1809.0,1808.9,3.60595]
[1743341687616,13.92246237,1809.0,1808.9,12.76545]
[1743341687820,13.92246237,1809.0,1808.9,47.63664005]
[1743341688117,13.92246237,1809.0,1808.9,50.13664005]
[1743341688315,7.96696592,1809.0,1808.9,50.13664005]
[1743341688513,0.00828843,1809.1,1809.0,1.10589]
[1743341688713,0.00828843,1809.1,1809.0,15.62909]
[1743341689022,8.43e-06,1809.1,1809.0,25.2435539]
[1743341689921,8.43e-06,1809.1,1809.0,22.7435539]
[1743341690125,8.43e-06,1809.1,1809.0,25.2435539]
[1743341690816,8.43e-06,1809.1,1809.0,31.44756184]
[1743341691216,2.07739643,1809.1,1809.0,1.10589]
[1743341691417,5.28519643,1809.1,1809.0,1.10589]
[1743341692124,2.07739643,1809.1,1809.0,1.10589]
[1743341693319,2.07739643,1809.1,1809.0,8.17527911]
[1743341693818,8.43e-06,1809.1,1809.0,10.67527911]
[1743341694023,8.43e-06,1809.1,1809.0,8.17527911]
[1743341694430,8.43e-06,1809.1,1809.0,10.67527911]
[1743341695825,8.43e-06,1809.1,1809.0,22.45897911]
[1743341696014,8.43e-06,1809.1,1809.0,23.01177911]
[1743341696220,8.43e-06,1809.1,1809.0,29.40357595]
[1743341696419,11.4474,1809.9,1809.8,1.1054]
[1743341696626,13.524788,1809.9,1809.8,1.1054]
[1743341696825,13.524788,1809.9,1809.5,3.2078]
[1743341697027,2.077388,1809.8,1809.7,1.1054]
[1743341697420,2.077388,1809.8,1809.7,8.39288887]
[1743341698324,0.00828843,1809.9,1809.8,1.1054]
[1743341698528,2.08567643,1809.9,1809.8,1.1054]
[1743341699223,0.00828843,1809.9,1809.8,1.1054]
[1743341699423,2.08567643,1809.9,1809.8,8.37587166]
[1743341700127,2.08567643,1809.9,1809.7,1.10542]
[1743341700330,15.74912,1809.8,1808.8,0.5528]
[1743341700522,15.74912,1809.8,1808.9,3.2078]
[1743341700523,3.2078,1809.5,1808.9,3.2078]
[1743341700731,11.4359,1809.4,1809.3,1.10568]
[1743341701028,0.96330957,1809.4,1809.1,2.76457]
[1743341701218,9.273,1809.8,1809.0,10.38802296]
[1743341701219,0.96330957,1809.3,1809.2,1.10577]
[1743341701424,14.6437,1809.6,1809.2,10.38802296]
[1743341701624,0.96330957,1809.5,1809.4,1.10564]
[1743341701821,12.39920957,1809.5,1809.4,1.10564]
[1743341702124,3.21608843,1809.9,1809.8,1.1054]
[1743341702634,0.971598,1809.9,1809.8,8.41042771]
[1743341702833,0.971598,1809.9,1809.8,1.1054]
[1743341703327,0.00828843,1809.9,1809.8,3.6054]
[1743341703519,0.00828843,1809.9,1809.8,8.33633045]
[1743341703923,0.971598,1809.9,1809.8,8.33633045]
[1743341704130,0.971598,1809.9,1809.8,1.1054]
[1743341704433,0.971598,1809.9,1809.8,8.38301141]
[1743341704934,0.00828843,1809.9,1809.8,10.88301141]
[1743341705134,0.971598,1809.9,1809.8,8.38301141]
[1743341705734,0.00828843,1809.9,1809.8,8.38301141]
[1743341706432,0.00828843,1809.9,1809.8,10.88301141]
[1743341706636,8.43e-06,1809.9,1809.8,17.19731026]
[1743341706928,8.43e-06,1809.9,1809.8,10.88301141]
[1743341708035,3.2078,1810.7,1810.6,1.10491]
[1743341708526,4.171118,1810.7,1810.6,1.10491]
[1743341708732,0.963318,1810.7,1810.6,1.10491]
[1743341709029,3.2078,1810.9,1810.8,1.10479]
[1743341709226,0.97160643,1810.8,1810.7,1.10482]
[1743341709431,0.00828843,1810.8,1810.7,1.10482]
[1743341709629,0.00828843,1810.8,1810.7,10.74605131]
[1743341709931,0.00828843,1810.8,1810.7,11.45385131]
[1743341710128,0.00828843,1810.8,1810.7,13.95385131]
[1743341710528,0.00828843,1810.8,1810.7,17.61705376]
[1743341710723,0.00828843,1810.8,1810.7,11.45385131]
[1743341710927,0.00828843,1810.8,1810.7,20.08007645]
[1743341711134,0.00828843,1810.8,1810.7,17.58007645]
[1743341711329,0.97160643,1810.8,1810.7,1.10482]
[1743341711522,0.00828843,1810.8,1810.5,0.56108843]
[1743341711726,0.963318,1810.7,1810.1,3.2078]
[1743341712026,11.177,1810.6,1810.5,1.10497]
[1743341712227,12.140318,1810.6,1810.5,1.10497]
[1743341712427,12.140318,1810.6,1810.1,5.97077]
[1743341712626,11.177,1810.6,1810.2,2.7628]
[1743341712836,12.140318,1810.6,1810.5,1.10497]
[1743341714530,12.140318,1810.6,1810.3,3.2078]
[1743341714838,0.963318,1810.5,1810.4,1.10503]
[1743341715435,0.963318,1810.5,1810.3,3.2078]
[1743341715735,12.923018,1810.4,1810.3,4.31289]
[1743341716036,11.9597,1810.4,1810.3,4.31289]
[1743341716237,12.923018,1810.4,1810.3,4.31289]
[1743341717836,3.2078,1810.7,1810.6,1.10491]
[1743341718035,12.923018,1810.6,1810.5,1.10493]
[1743341719141,12.923018,1810.6,1810.5,8.36278208]
[1743341719327,3.2078,1810.7,1810.6,1.10491]
[1743341719834,1e-08,1810.8,1810.7,1.10485]
[1743341720232,1e-08,1810.8,1810.7,10.91741697]
[1743341720431,1e-08,1810.8,1810.7,49.96201697]
[1743341720633,11.4636,1811.5,1811.4,1.10442]
[1743341720832,12.426918,1811.5,1811.4,1.10442]
[1743341721234,12.426918,1811.5,1811.4,7.68246761]
[1743341721235,0.963318,1811.5,1811.4,7.68246761]
[1743341721537,11.4636,1811.9,1811.8,1.10418]
[1743341721735,11.4636,1811.9,1811.5,2.76091]
[1743341721736,4.171118,1812.0,1811.9,1.10412]
[1743341721938,0.97160643,1812.0,1811.9,11.33088784]
[1743341722238,8.38850457,1812.1,1812.0,1.65606]
[1743341722239,0.03192774,1812.1,1812.0,1.65606]
[1743341722438,15.74426651,1812.9,1812.8,1.10357]
[1743341722740,9.7745849,1812.9,1812.8,1.10357]
[1743341723035,8.67526651,1812.9,1812.8,10.62253784]
[1743341723237,13.389073,1813.0,1812.9,1.10351]
[1743341723540,20.63020506,1813.4,1813.3,1.10327]
[1743341723742,18.02830506,1813.4,1813.3,4.31107]
[1743341723943,16.31830506,1813.4,1813.3,14.09384815]
[1743341724135,68.67604889,1813.7,1813.6,1.10308]
[1743341724437,68.06614889,1813.7,1813.6,1.10308]
[1743341724640,68.06614889,1813.7,1813.6,8.38585815]
[1743341724844,73.58534889,1813.7,1813.6,8.38585815]
[1743341725149,68.06614889,1813.7,1813.6,14.09365815]
[1743341725437,0.00486663,1813.8,1813.7,1.10302]
[1743341725638,0.00486663,1813.8,1813.7,13.01912]
[1743341725945,5.52406663,1813.8,1813.7,7.03803902]
[1743341726438,5.52406663,1813.8,1812.6,3.2078]
[1743341726439,5.71266663,1813.8,1812.6,3.2078]
[1743341726638,3.2078,1813.1,1812.0,3.2078]
[1743341726834,3.2078,1812.8,1812.3,1.10385]
[1743341727035,3.2078,1812.6,1812.1,7.00396705]
[1743341727235,15.1098,1812.7,1812.4,7.00396705]
[1743341727436,3.2078,1812.5,1812.3,1.10384]
[1743341727643,3.2078,1812.4,1812.3,1.10387]
[1743341728049,8.16671157,1812.4,1812.3,8.4285171]
[1743341728232,12.0183,1813.2,1813.1,1.10339]
[1743341728436,16.97721157,1813.2,1813.1,1.10339]
[1743341728747,16.97721157,1813.2,1812.9,1.10347]
[1743341729046,4.95891157,1813.1,1813.0,1.10344]
[1743341729233,4.95891157,1813.1,1813.0,8.25249754]
[1743341729432,4.95891157,1813.1,1812.5,3.2078]
[1743341729631,12.02316663,1813.2,1813.1,1.10339]
[1743341730147,0.00486663,1813.2,1813.1,8.42831881]
[1743341730337,3.2078,1814.2,1813.2,2.75819]
[1743341730638,3.2078,1813.4,1813.0,0.552]
[1743341730836,3.2078,1813.6,1813.4,1.10319]
[1743341731033,3.2078,1813.6,1813.4,1.1032]
[1743341731237,17.10411157,1813.5,1813.4,1.1032]
[1743341731441,3.2078,1814.0,1813.7,1.10302]
[1743341731645,3.2078,1814.2,1813.4,16.28227051]
[1743341731837,3.2078,1814.0,1813.8,8.21201846]
[1743341732034,12.1452,1813.9,1813.8,7.10907846]
[1743341732238,17.10411157,1813.9,1813.6,1.10306]
[1743341732435,3.2078,1813.7,1813.6,1.10306]
[1743341732634,3.2078,1814.2,1814.1,1.10278]
[1743341732848,3.2078,1814.2,1813.7,10.4703773]
[1743341733046,12.1452,1814.3,1814.2,1.10272]
[1743341733234,17.10411157,1814.3,1814.2,1.10272]
[1743341733435,3.2078,1814.8,1814.2,7.8836544]
[1743341733942,4.95891157,1814.7,1814.6,1.10242]
[1743341734340,7.45891157,1814.7,1814.3,0.00828843]
[1743341734542,5.7466,1815.1,1814.3,1.11094843]
[1743341734543,3.2078,1814.4,1814.3,1.11094843]
[1743341734745,3.2078,1814.4,1814.3,0.00828843]
[1743341735043,8.16671157,1814.4,1814.3,0.00828843]
[1743341735242,5.7078,1814.4,1813.7,1.103]
[1743341735444,3.2078,1813.9,1813.4,0.5512]
[1743341735648,3.2078,1813.9,1813.5,0.552]
[1743341735947,4.95891157,1813.8,1813.7,1.10302]
[1743341736346,0.00828842,1813.9,1813.8,8.1988596]
[1743341736738,0.00828842,1813.9,1813.8,10.6988596]
[1743341737146,8.42e-06,1813.9,1813.8,38.2988596]
[1743341737345,8.42e-06,1813.9,1813.8,44.5674471]
[1743341737546,14.4308,1814.7,1813.8,43.4644871]
[1743341737743,3.2078,1813.9,1813.8,7.0958996]
[1743341737940,3.2078,1813.9,1813.8,1.10296]
[1743341738250,4.95891157,1813.9,1813.8,1.10296]
[1743341738648,3.2078,1814.3,1814.2,1.10267]
[1743341739158,8.16671157,1814.3,1813.6,0.00828843]
[1743341739446,16.19071157,1814.2,1813.6,0.00828843]
[1743341739652,3.2078,1814.1,1813.9,1.10285]
[1743341739945,11.2318,1814.0,1813.9,1.10285]
[1743341740150,16.19071157,1814.0,1813.6,0.00828843]
[1743341740351,3.2078,1813.8,1813.6,0.00828843]
[1743341740545,3.2078,1813.8,1812.9,1.10347]
[1743341740546,1.10304,1813.7,1812.9,1.10347]
[1743341740745,3.2078,1813.1,1812.5,2.75934]
[1743341740951,3.2078,1813.1,1812.4,3.2078]
[1743341740952,11.5845,1813.0,1812.9,1.10351]
[1743341741245,15.44014157,1813.0,1812.9,1.10351]
[1743341742345,3.85564157,1813.0,1812.9,8.35125279]
[1743341743449,15.34074157,1813.0,1812.8,0.00828843]
[1743341743650,7.06344157,1812.9,1812.8,0.00828843]
[1743341743861,15.34074157,1812.9,1812.8,0.00828843]
[1743341744056,15.34074157,1812.9,1812.8,1.11185843]
[1743341744455,18.54854157,1812.9,1812.8,1.11185843]
[1743341744755,18.54854157,1812.9,1812.8,0.00828843]
[1743341744956,18.54854157,1812.9,1812.8,1.11185843]
[1743341745151,18.54854157,1812.9,1812.8,0.00828843]
[1743341745342,18.54854157,1812.9,1812.7,1.10363]
[1743341745653,3.85564157,1812.8,1812.7,1.10363]
[1743341746053,14.84074157,1812.8,1812.7,1.10363]
[1743341746259,3.21608843,1813.1,1813.0,1.10345]
[1743341746760,3.21608843,1813.1,1812.7,1.10363]
[1743341747054,14.1929,1813.0,1812.9,1.10351]
[1743341748148,14.1929,1813.0,1812.8,1.10354]
[1743341748354,14.1929,1813.0,1812.7,1.10362]
[1743341748552,3.2078,1812.8,1812.7,1.10362]
[1743341749148,3.2078,1812.8,1812.7,8.41427221]
[1743341749355,14.1929,1813.0,1812.9,1.10351]
[1743341750162,1.10366,1812.7,1811.7,0.552]
[1743341750357,3.2078,1812.1,1811.5,34.1206]
[1743341750574,3.2078,1812.3,1811.8,7.11343169]
[1743341750858,3.2078,1812.3,1812.0,1.10405]
[1743341751061,3.2078,1812.3,1811.7,7.25888017]
[1743341751249,3.2078,1812.3,1812.0,0.00828843]
[1743341751250,3.2078,1812.1,1812.0,0.00828843]
[1743341751756,3.2078,1812.1,1811.7,7.25888017]
[1743341752063,3.2078,1811.9,1811.7,1.10422]
[1743341752555,3.2078,1811.9,1811.6,1.10426]
[1743341752759,3.2078,1811.9,1811.5,30.8078]
[1743341752960,3.2078,1811.9,1811.6,8.18704667]
[1743341753162,3.2078,1811.7,1811.6,0.00828843]
[1743341753754,11.5783,1811.8,1811.6,0.00828843]
[1743341753959,3.2078,1811.7,1811.2,27.6]
[1743341754259,3.2078,1811.7,1811.5,1.1043]
[1743341754460,3.2078,1811.7,1811.5,1.10434]
[1743341754656,3.2078,1811.7,1811.2,27.6]
[1743341754961,3.2078,1811.7,1811.3,7.31629396]
[1743341755157,3.2078,1811.7,1811.6,1.1043]
[1743341755664,3.2078,1811.9,1811.8,1.10414]
[1743341755865,3.2078,1812.1,1811.8,1.10414]
[1743341756051,11.0027,1812.0,1811.7,1.1042]
[1743341756359,3.2078,1811.9,1811.6,1.10425]
[1743341756563,11.0027,1811.8,1811.6,1.10425]
[1743341756762,11.0027,1811.8,1811.7,1.10424]
[1743341756962,3.2078,1812.1,1811.5,3.2078]
[1743341757163,3.2078,1812.1,1811.8,1.10416]
[1743341757361,11.0027,1812.0,1811.6,7.29316262]
[1743341757562,11.0027,1812.0,1811.8,1.10417]
[1743341757761,11.0027,1812.0,1811.7,1.1042]
[1743341757963,11.0027,1812.0,1811.6,7.29316262]
[1743341758156,11.0027,1812.0,1811.7,1.10421]
[1743341759065,11.0027,1812.0,1811.5,3.2078]
[1743341759361,11.0027,1812.0,1811.7,1.1042]
[1743341759567,11.0027,1812.0,1811.8,1.10418]
[1743341759763,3.21608843,1812.3,1812.0,1.10406]
[1743341759966,11.2945,1812.2,1811.9,1.10407]
[1743341760166,11.2945,1812.2,1811.7,3.2078]
[1743341760363,11.2945,1812.2,1811.9,1.10408]
[1743341760566,11.2945,1812.2,1811.8,7.15869685]
[1743341760567,11.2945,1812.2,1812.0,1.10405]
[1743341760860,11.2945,1812.2,1812.0,1.10402]
[1743341761063,11.2945,1812.2,1812.1,1.104]
[1743341761466,0.00828843,1812.3,1812.2,1.10393]
[1743341762165,0.00828843,1812.3,1811.9,14.9024]
[1743341762360,0.00828843,1812.3,1812.2,1.10393]
[1743341764067,0.00828843,1812.3,1812.2,10.78290064]
[1743341764263,3.2078,1812.9,1812.7,1.10359]
[1743341764460,3.2078,1812.9,1812.5,1.10374]
[1743341764664,3.2078,1812.6,1811.9,3.2078]
[1743341764863,3.2078,1812.4,1812.2,1.10389]
[1743341765069,11.7336,1812.3,1812.2,1.10389]
[1743341766366,0.00828843,1812.4,1812.3,1.10387]
[1743341766758,14.9414,1812.8,1812.3,11.36620062]
[1743341766961,14.9414,1812.8,1812.4,1.10375]
[1743341767157,3.2078,1812.5,1812.4,1.10375]
[1743341767365,3.2078,1812.5,1812.1,1.11226843]
[1743341767665,3.2078,1812.3,1812.1,1.11224843]
[1743341767874,11.0899,1812.2,1812.1,1.11224843]
[1743341768675,3.2078,1812.3,1812.2,1.10393]
[1743341769366,0.00828843,1812.4,1812.3,1.10387]
[1743341770173,1e-08,1812.4,1812.3,11.56939033]
[1743341770969,1e-08,1812.4,1812.3,14.06939033]
[1743341771575,1e-08,1812.4,1812.3,14.62139033]
[1743341771965,1e-08,1812.4,1812.3,20.55560891]
[1743341772167,9.28452519,1813.3,1813.0,1.10342]
[1743341772468,3.61333237,1813.2,1812.6,4.31144]
[1743341772669,3.2078,1813.2,1812.7,1.10361]
[1743341772873,0.40550026,1813.1,1812.7,1.10361]
[1743341773165,3.2078,1813.2,1812.9,1.10347]
[1743341773362,0.00828843,1813.1,1812.6,3.2078]
[1743341773567,0.00828843,1813.1,1812.9,1.10349]
[1743341773972,0.00828843,1813.1,1812.8,1.10355]
[1743341774172,0.00828843,1813.1,1813.0,1.10345]
[1743341775472,0.00828843,1813.1,1813.0,4.31125]
[1743341776579,0.00828843,1813.1,1812.9,1.10349]
[1743341776779,11.45838843,1813.1,1813.0,1.10345]
[1743341777682,11.45838843,1813.1,1812.7,3.2078]
[1743341778073,3.61320176,1813.0,1812.6,1.10369]
[1743341778378,11.4501,1812.9,1812.6,1.10369]
[1743341778771,11.4501,1812.9,1812.3,3.2078]
[1743341778973,11.4501,1812.9,1812.3,5.96743]
[1743341779471,11.4501,1812.9,1812.6,1.10366]